bitfinex/quotes_BTCUSD_20230403
["timestamp","ask_amount","ask_price","bid_price","bid_amount"]
[1680485556531,2.84265023,27996.0,27995.0,0.01380758]
[1680485556953,2.96973122,27996.0,27995.0,0.01380758]
[1680485557169,2.80026543,27996.0,27995.0,0.01380758]
[1680485557834,2.78597843,27996.0,27995.0,0.013733]
[1680485558260,2.78249595,27996.0,27995.0,0.013733]
[1680485558688,2.78249595,27996.0,27995.0,0.0136589]
[1680485559592,2.78249595,27996.0,27995.0,0.01358526]
[1680485560262,2.80026543,27996.0,27995.0,0.01358526]
[1680485560697,2.80026543,27996.0,27995.0,0.01351209]
[1680485560698,2.96973122,27996.0,27995.0,0.01351209]
[1680485560914,2.80026543,27996.0,27995.0,0.01351209]
[1680485561574,2.80026543,27996.0,27995.0,0.01343938]
[1680485562686,2.80026543,27996.0,27995.0,0.01336712]
[1680485563142,2.88495807,27996.0,27995.0,0.01336712]
[1680485563388,3.15547367,27996.0,27995.0,0.01336712]
[1680485563605,3.85547367,27996.0,27995.0,0.01329532]
[1680485564511,3.85547367,27996.0,27995.0,0.01322397]
[1680485565162,3.58536543,27996.0,27995.0,0.01322397]
[1680485565379,3.58536543,27996.0,27995.0,0.01315307]
[1680485566029,3.62775023,27996.0,27995.0,0.01315307]
[1680485566691,3.75479588,27996.0,27995.0,0.01308306]
[1680485567146,3.75477936,27996.0,27995.0,0.01308306]
[1680485567584,3.75477936,27996.0,27995.0,0.01301305]
[1680485567812,3.48592657,27996.0,27995.0,0.01301305]
[1680485568019,3.50021357,27996.0,27995.0,0.01301305]
[1680485568708,2.90542494,27996.0,27995.0,0.01294348]
[1680485568937,2.39370796,27996.0,27995.0,0.01294348]
[1680485569154,2.36820409,27996.0,27995.0,0.01294348]
[1680485569379,2.39421909,27996.0,27995.0,0.01294348]
[1680485569647,2.39421909,27996.0,27995.0,0.01287434]
[1680485570065,1.69421909,27996.0,27995.0,0.01287434]
[1680485570498,1.69421909,27996.0,27995.0,0.01280564]
[1680485570758,1.69421909,27996.0,27995.0,0.03066564]
[1680485570759,0.02775515,27996.0,27995.0,0.03066564]
[1680485570976,0.02775515,27996.0,27995.0,0.12664913]
[1680485571194,0.23977508,27998.0,27996.0,0.05]
[1680485571413,0.23933781,27998.0,27997.0,0.085689]
[1680485571628,0.23933781,27998.0,27997.0,0.053577]
[1680485572061,0.23933781,27998.0,27997.0,0.087554]
[1680485572500,0.24833781,27998.0,27997.0,0.054577]
[1680485573147,0.24833781,27998.0,27997.0,0.087661]
[1680485574016,0.24833781,27998.0,27997.0,0.244377]
[1680485574353,0.24912069,27998.0,27997.0,0.019039]
[1680485574563,0.24912069,27998.0,27997.0,0.018859]
[1680485575661,0.24912069,27998.0,27997.0,0.051558]
[1680485575887,0.24912069,27998.0,27997.0,0.018859]
[1680485576110,0.24912069,27998.0,27997.0,0.22202]
[1680485576325,0.24912069,27998.0,27997.0,0.2222]
[1680485577475,0.24012069,27998.0,27997.0,0.5964]
[1680485577722,0.24112069,27998.0,27997.0,0.6074]
[1680485577925,0.24012069,27998.0,27997.0,0.5964]
[1680485578139,0.24112069,27998.0,27997.0,0.6074]
[1680485579032,0.24112069,27998.0,27997.0,0.6574]
[1680485580619,0.24112069,27998.0,27997.0,1.01237497]
[1680485582319,0.24112069,27998.0,27997.0,1.02264309]
[1680485583413,0.24033781,27998.0,27997.0,1.02264309]
[1680485583733,0.23933781,27998.0,27997.0,1.03964309]
[1680485584177,0.23933781,27998.0,27997.0,1.01164309]
[1680485584398,0.19990144,28008.0,28000.0,0.3752]
[1680485584627,0.00051,28008.0,28007.0,0.46]
[1680485584856,0.00051,28008.0,28007.0,0.84052329]
[1680485585334,0.00051,28009.0,28007.0,1.19549826]
[1680485585570,0.00051,28009.0,28008.0,0.578672]
[1680485585800,0.00051,28010.0,28008.0,0.596524]
[1680485586035,0.00027,28010.0,28009.0,0.491726]
[1680485586275,0.00051,28010.0,28009.0,0.545279]
[1680485587181,0.3,28013.0,28011.0,0.3752]
[1680485587405,0.3,28013.0,28012.0,0.138247]
[1680485587691,0.3,28013.0,28012.0,0.138367]
[1680485587920,0.3,28013.0,28012.0,0.513627]
[1680485588165,0.49592144,28014.0,28012.0,0.513627]
[1680485588386,0.49541144,28014.0,28012.0,0.513627]
[1680485589518,0.49541144,28014.0,28012.0,0.516627]
[1680485589739,0.49541144,28014.0,28012.0,0.513627]
[1680485589966,0.49641144,28014.0,28012.0,0.513627]
[1680485590233,0.02449,28015.0,28013.0,0.031713]
[1680485590465,0.02398,28015.0,28014.0,0.513444]
[1680485590708,0.02398,28015.0,28014.0,0.546394]
[1680485591188,0.02398,28015.0,28014.0,0.546454]
[1680485591418,0.02398,28015.0,28014.0,0.546574]
[1680485591651,0.01898,28015.0,28014.0,0.546394]
[1680485592106,0.38270381,28020.0,28015.0,0.4252]
[1680485592334,1.28457866,28019.0,28016.0,0.053539]
[1680485592595,0.3,28018.0,28016.0,0.053539]
[1680485592887,0.0003,28019.0,28016.0,0.053539]
[1680485593109,0.0003,28019.0,28016.0,0.017846]
[1680485593110,1.28459925,28019.0,28016.0,0.017846]
[1680485593346,1.28459925,28018.0,28016.0,0.019846]
[1680485593584,0.35497497,28017.0,28016.0,0.002]
[1680485593811,0.38896597,28017.0,28014.0,0.00018]
[1680485594053,0.36347497,28017.0,28015.0,0.017847]
[1680485594728,0.36447497,28017.0,28015.0,0.017847]
[1680485594964,0.36447497,28017.0,28016.0,0.01596369]
[1680485595197,1.67597714,28017.0,28016.0,0.03380969]
[1680485595677,1.67497714,28017.0,28016.0,0.03380969]
[1680485595911,1.67597714,28017.0,28016.0,0.03380969]
[1680485596139,1.67497714,28017.0,28016.0,0.03380969]
[1680485596370,1.67597714,28017.0,28016.0,0.03580969]
[1680485599075,1.32100217,28017.0,28016.0,0.03580969]
[1680485599319,1.29411517,28017.0,28016.0,0.03580969]
[1680485599538,1.29311517,28017.0,28016.0,0.03380969]
[1680485599767,1.31961317,28017.0,28016.0,0.03480969]
[1680485599992,1.29411517,28017.0,28016.0,0.03480969]
[1680485600857,1.32101517,28017.0,28016.0,0.03480969]
[1680485601090,1.90306501,28017.0,28016.0,0.01696369]
[1680485601315,0.08746537,28015.0,28011.0,0.018029]
[1680485601543,1.45267804,28014.0,28011.0,0.01785]
[1680485601760,1.31094817,28013.0,28011.0,0.01797]
[1680485601997,1.31149817,28012.0,28011.0,0.01803]
[1680485602439,1.31149817,28012.0,28011.0,0.02803]
[1680485602661,1.31149817,28012.0,28011.0,0.01785]
[1680485602882,1.31155817,28012.0,28009.0,0.25792053]
[1680485603107,0.0003,28012.0,28011.0,0.01785]
[1680485603365,1.58504864,28014.0,28011.0,0.01785]
[1680485603593,1.31118764,28013.0,28011.0,0.01785]
[1680485603815,1.30991364,28012.0,28011.0,0.01785]
[1680485604033,1.31121364,28012.0,28011.0,0.009]
[1680485604912,1.31021364,28012.0,28010.0,0.01785]
[1680485605123,0.0003,28012.0,28011.0,0.002]
[1680485605343,1.28473944,28013.0,28009.0,0.017851]
[1680485605562,0.036064,28012.0,28011.0,0.002]
[1680485605776,1.32080344,28012.0,28011.0,0.002]
[1680485605993,1.32110344,28012.0,28011.0,0.002]
[1680485606847,1.32110344,28012.0,28010.0,0.01785]
[1680485606848,1.28503944,28012.0,28010.0,0.01785]
[1680485607064,1.28473944,28011.0,28010.0,0.01785]
[1680485607280,0.0003,28011.0,28010.0,0.01785]
[1680485607498,1.28503944,28013.0,28010.0,0.01785]
[1680485607712,0.025971,28012.0,28010.0,0.01785]
[1680485607927,1.28473944,28011.0,28010.0,0.01785]
[1680485608147,0.0003,28011.0,28010.0,0.01785]
[1680485608369,1.28473944,28012.0,28010.0,0.01785]
[1680485608616,1.28473944,28011.0,28010.0,0.01885]
[1680485608840,0.0003,28011.0,28010.0,0.39405]
[1680485609060,1.28473944,28011.0,28010.0,0.78069097]
[1680485609278,1.29503944,28011.0,28010.0,0.98269097]
[1680485609510,0.0003,28012.0,28010.0,0.98087097]
[1680485609744,1.2845727,28014.0,28011.0,0.031754]
[1680485609969,1.2848727,28014.0,28013.0,0.3752]
[1680485610194,1.2848727,28014.0,28013.0,0.425557]
[1680485610414,1.2848727,28014.0,28013.0,0.393048]
[1680485610853,1.2848727,28014.0,28013.0,0.426969]
[1680485611089,1.2848727,28014.0,28013.0,0.593048]
[1680485611745,1.2858727,28014.0,28013.0,0.608048]
[1680485612611,1.2858727,28014.0,28013.0,0.96302297]
[1680485612828,1.2855727,28014.0,28013.0,0.99541597]
[1680485614059,1.2855727,28014.0,28013.0,0.99541597]
[1680485614934,1.2845727,28014.0,28013.0,0.98041597]
[1680485615157,1.2855727,28014.0,28013.0,0.99541597]
[1680485615378,1.2855727,28014.0,28013.0,0.99547597]
[1680485617888,1.2862352,28014.0,28013.0,0.99547597]
[1680485618092,1.2862352,28014.0,28013.0,1.08057597]
[1680485618463,0.0016625,28014.0,28013.0,1.16567597]
[1680485618693,2.5e-06,28014.0,28013.0,1.46549597]
[1680485619391,0.0003,28021.0,28020.0,0.5752]
[1680485619617,0.0003,28022.0,28021.0,0.05]
[1680485619893,0.0003,28022.0,28021.0,1.13937126]
[1680485620385,1.48398,28025.0,28023.0,0.5752]
[1680485620610,1.48398,28025.0,28024.0,2.05448526]
[1680485620842,1.48398,28025.0,28024.0,1.91515297]
[1680485621070,1.48398,28025.0,28024.0,1.92908988]
[1680485621296,1.33398,28025.0,28024.0,1.92908988]
[1680485621522,1.23398,28025.0,28024.0,1.93758988]
[1680485621744,0.02398,28030.0,28029.0,0.5752]
[1680485621977,0.02398,28030.0,28029.0,1.57455726]
[1680485622458,0.00088,28030.0,28029.0,1.7533218]
[1680485623154,1e-08,28031.0,28030.0,0.4252]
[1680485623379,1e-08,28031.0,28030.0,1.32259797]
[1680485624320,1e-08,28031.0,28030.0,1.35059797]
[1680485624537,1e-08,28031.0,28030.0,1.32259797]
[1680485624756,1e-08,28031.0,28030.0,1.32265797]
[1680485624993,1e-08,28031.0,28030.0,1.62259797]
[1680485625443,1e-08,28031.0,28030.0,1.65059797]
[1680485625666,1e-08,28031.0,28030.0,1.62259797]
[1680485625889,1e-08,28031.0,28030.0,1.65065797]
[1680485626830,1e-08,28031.0,28030.0,1.62265797]
[1680485627063,0.02398,28032.0,28030.0,1.66498596]
[1680485627282,0.02398,28032.0,28031.0,1.25621797]
[1680485627517,0.02398,28032.0,28031.0,1.30932897]
[1680485627932,0.02254976,28032.0,28031.0,1.32219255]
[1680485628639,0.02254976,28032.0,28031.0,0.99929255]
[1680485628907,0.02254976,28032.0,28031.0,1.14219255]
[1680485629134,0.02113143,28032.0,28031.0,1.11419255]
[1680485629355,0.02113143,28032.0,28031.0,1.14219255]
[1680485629589,0.02113143,28032.0,28031.0,1.11419255]
[1680485629788,0.02113143,28032.0,28031.0,1.14219255]
[1680485630046,0.01976534,28032.0,28031.0,1.14219255]
[1680485630918,0.01976534,28032.0,28031.0,1.05739255]
[1680485631150,0.01839739,28032.0,28031.0,1.05739255]
[1680485632065,0.01703514,28032.0,28031.0,0.70241758]
[1680485632317,0.01703514,28032.0,28031.0,0.50241758]
[1680485633010,0.01567856,28032.0,28031.0,0.47441758]
[1680485633680,0.00567856,28032.0,28031.0,0.47441758]
[1680485633900,0.00567856,28032.0,28031.0,0.49541758]
[1680485634123,0.00432764,28032.0,28031.0,0.49541758]
[1680485634566,0.00432764,28032.0,28031.0,0.47441758]
[1680485635007,0.00298234,28032.0,28031.0,0.48841758]
[1680485635244,0.00298234,28032.0,28031.0,0.47441758]
[1680485635465,0.00298234,28032.0,28031.0,0.49541758]
[1680485635684,0.00298234,28032.0,28031.0,0.47441758]
[1680485635906,0.00298234,28032.0,28031.0,0.48841758]
[1680485636141,0.00164265,28032.0,28031.0,0.48841758]
[1680485637037,0.00030854,28032.0,28031.0,0.48841758]
[1680485637261,0.00030854,28032.0,28031.0,0.09921758]
[1680485637458,0.00030854,28032.0,28031.0,0.03386358]
[1680485637711,0.00030854,28032.0,28030.0,0.72199685]
[1680485637943,0.00030854,28032.0,28031.0,0.0311225]
[1680485638166,0.00130854,28032.0,28031.0,0.0431225]
[1680485638358,0.00030854,28032.0,28031.0,0.0311225]
[1680485638580,0.35628351,28032.0,28031.0,0.0192855]
[1680485638802,0.62705351,28032.0,28031.0,0.0132855]
[1680485639037,0.654473,28032.0,28031.0,0.0132855]
[1680485639936,0.653473,28032.0,28031.0,0.0132855]
[1680485640160,0.739573,28032.0,28031.0,0.0132855]
[1680485640391,2.02253869,28032.0,28031.0,0.0132855]
[1680485640608,0.762573,28032.0,28031.0,0.0142855]
[1680485641052,2.04653869,28032.0,28031.0,0.001]
[1680485641753,2.04653869,28032.0,28031.0,0.00093951]
[1680485642900,0.05,28031.0,28030.0,0.04588395]
[1680485643133,2.89107866,28031.0,28030.0,0.04588395]
[1680485643360,2.51587866,28031.0,28030.0,0.04588395]
[1680485644293,2.54287866,28031.0,28030.0,0.04588395]
[1680485644583,2.54287866,28031.0,28024.0,0.017841]
[1680485644584,0.2,28028.0,28024.0,0.017841]
[1680485644859,0.0842,28025.0,28023.0,0.017842]
[1680485645158,0.112168,28024.0,28023.0,0.017842]
[1680485645438,0.112168,28024.0,28023.0,0.017962]
[1680485645743,0.112168,28024.0,28023.0,0.017902]
[1680485646007,0.0843,28024.0,28023.0,0.03267238]
[1680485646225,0.0843,28024.0,28023.0,0.03261238]
[1680485646665,0.0973,28024.0,28023.0,0.03261238]
[1680485646937,0.0843,28024.0,28023.0,0.03279238]
[1680485647156,0.1043,28024.0,28023.0,0.03279238]
[1680485647393,0.0843,28024.0,28023.0,0.03279238]
[1680485647609,0.0973,28024.0,28023.0,0.03279238]
[1680485647830,0.0978982,28024.0,28023.0,0.03279238]
[1680485648087,0.0848982,28024.0,28023.0,0.03279238]
[1680485648540,0.1104282,28024.0,28023.0,0.01495038]
[1680485648989,0.1048982,28024.0,28023.0,0.01489038]
[1680485649209,0.0848982,28024.0,28023.0,0.01489038]
[1680485649480,0.48043017,28024.0,28023.0,0.01477038]
[1680485649706,1.75160198,28024.0,28023.0,0.01477038]
[1680485649927,1.77160198,28024.0,28023.0,0.01477038]
[1680485650146,1.77160198,28024.0,28021.0,0.017963]
[1680485650376,1.77160198,28024.0,28021.0,0.017843]
[1680485650377,0.110015,28023.0,28021.0,0.017843]
[1680485650853,0.026925,28022.0,28021.0,0.017843]
[1680485651081,0.026925,28022.0,28020.0,0.018023]
[1680485651301,0.44007497,28023.0,28020.0,0.018023]
[1680485651530,0.0843,28021.0,28020.0,0.00018]
[1680485651759,0.110367,28021.0,28020.0,0.00018]
[1680485652486,0.110367,28021.0,28020.0,6e-05]
[1680485652713,0.123367,28021.0,28019.0,0.00018]
[1680485652953,0.026308,28020.0,28019.0,6e-05]
[1680485653177,0.026308,28020.0,28018.0,0.00018]
[1680485653395,0.026308,28020.0,28018.0,0.018025]
[1680485653629,0.026308,28020.0,28018.0,0.00018]
[1680485653866,0.026308,28020.0,28017.0,0.018025]
[1680485654335,0.0843,28021.0,28017.0,0.018025]
[1680485655134,0.006,28020.0,28017.0,0.018025]
[1680485655360,0.0851,28018.0,28017.0,0.00018]
[1680485655904,0.0851,28018.0,28015.0,0.017847]
[1680485656133,0.0851,28017.0,28015.0,0.018027]
[1680485656792,0.1702,28016.0,28015.0,0.00018]
[1680485657015,0.19586,28016.0,28015.0,0.018027]
[1680485657474,0.0005956,28016.0,28015.0,0.018027]
[1680485657692,0.006,28017.0,28015.0,0.018027]
[1680485657912,0.3,28018.0,28015.0,0.018027]
[1680485658143,0.02,28016.0,28015.0,0.018027]
[1680485658624,0.3,28018.0,28015.0,0.018027]
[1680485659177,0.001,28016.0,28015.0,0.018027]
[1680485659456,0.3,28018.0,28015.0,0.018027]
[1680485659927,0.5,28019.0,28015.0,0.018027]
[1680485660439,0.5,28019.0,28015.0,0.393227]
[1680485660893,0.001,28016.0,28015.0,0.393227]
[1680485661130,0.3,28018.0,28015.0,0.393227]
[1680485661573,0.3,28018.0,28015.0,0.018027]
[1680485661795,0.001,28016.0,28015.0,0.018027]
[1680485662031,0.3,28018.0,28015.0,0.018027]
[1680485662302,0.001,28018.0,28015.0,0.018027]
[1680485662525,0.301,28018.0,28015.0,0.018027]
[1680485662745,0.3,28018.0,28015.0,0.018027]
[1680485662966,0.001,28016.0,28015.0,0.018027]
[1680485663647,0.026461,28016.0,28015.0,0.018027]
[1680485664090,0.025461,28016.0,28015.0,0.018027]
[1680485664308,0.3861,28018.0,28015.0,0.018027]
[1680485664536,0.025732,28017.0,28015.0,0.018027]
[1680485664754,0.013,28016.0,28015.0,0.018027]
[1680485664988,0.3851,28018.0,28015.0,0.018027]
[1680485665216,0.025461,28017.0,28015.0,0.018027]
[1680485665438,0.3,28018.0,28015.0,0.018027]
[1680485665665,0.013,28016.0,28015.0,0.018027]
[1680485665886,0.3,28018.0,28015.0,0.018027]
[1680485666133,0.024861,28017.0,28015.0,0.018027]
[1680485666359,0.326354,28018.0,28015.0,0.018027]
[1680485666547,0.2,28019.0,28015.0,0.018027]
[1680485666767,0.2,28019.0,28015.0,0.393227]
[1680485667009,0.013,28017.0,28015.0,0.393227]
[1680485667220,0.3,28018.0,28015.0,0.393227]
[1680485667455,0.013,28018.0,28015.0,0.393227]
[1680485667673,0.2,28019.0,28015.0,0.393227]
[1680485667884,0.025,28018.0,28015.0,0.393227]
[1680485668548,0.2,28019.0,28015.0,0.393227]
[1680485668818,0.038258,28018.0,28015.0,0.393227]
[1680485669049,0.013,28018.0,28015.0,0.393227]
[1680485669280,0.01290521,28018.0,28015.0,0.393227]
[1680485669741,0.213,28019.0,28015.0,0.393227]
[1680485669978,0.025732,28018.0,28015.0,0.393227]
[1680485670215,0.013,28018.0,28015.0,0.393227]
[1680485670435,0.2,28019.0,28015.0,0.393227]
[1680485670654,0.213,28019.0,28015.0,0.393227]
[1680485670870,0.02586,28018.0,28015.0,0.393227]
[1680485671081,0.2,28019.0,28015.0,0.393227]
[1680485671330,0.013,28018.0,28015.0,0.393227]
[1680485671989,0.013,28018.0,28016.0,0.01312372]
[1680485672203,0.013,28018.0,28017.0,0.017846]
[1680485672672,0.038571,28018.0,28016.0,0.03096972]
[1680485672886,0.026588,28017.0,28016.0,0.03096972]
[1680485673102,0.2,28019.0,28016.0,0.017846]
[1680485673323,1.31040991,28018.0,28016.0,0.017846]
[1680485673548,0.026047,28017.0,28016.0,0.017846]
[1680485673795,0.025594,28018.0,28016.0,0.017846]
[1680485674014,0.045594,28018.0,28017.0,0.01312145]
[1680485674239,0.045992,28018.0,28017.0,0.01312145]
[1680485674673,1.33040151,28018.0,28017.0,0.01312145]
[1680485674890,1.33040151,28018.0,28017.0,0.03096745]
[1680485675117,1.33040151,28018.0,28017.0,0.017846]
[1680485675393,1.31040151,28018.0,28017.0,0.017846]
[1680485675613,1.33640151,28018.0,28017.0,0.017846]
[1680485676771,1.33640151,28018.0,28015.0,0.017967]
[1680485676993,0.026297,28017.0,28015.0,0.017847]
[1680485677220,0.026297,28017.0,28014.0,0.017847]
[1680485677438,0.026,28018.0,28014.0,0.017847]
[1680485677679,1.28443311,28017.0,28014.0,0.017847]
[1680485677943,0.025885,28016.0,28014.0,0.017847]
[1680485678185,0.02562,28017.0,28015.0,0.01312968]
[1680485678411,0.39359497,28017.0,28015.0,0.03097668]
[1680485678604,0.026406,28016.0,28015.0,0.03097668]
[1680485681069,0.039406,28016.0,28015.0,0.03097668]
[1680485682862,0.013,28016.0,28015.0,0.03097668]
[1680485683348,1.32304077,28016.0,28015.0,0.03097668]
[1680485683780,0.038619,28016.0,28015.0,0.03097668]
[1680485686042,0.03921435,28016.0,28015.0,0.03097668]
[1680485686482,0.01359535,28016.0,28015.0,0.03097668]
[1680485689420,0.00059535,28016.0,28015.0,0.03097668]
[1680485689644,0.01359535,28016.0,28015.0,0.03097668]
[1680485691371,0.01359535,28016.0,28015.0,0.06480868]
[1680485691593,0.01359535,28016.0,28015.0,0.03097668]
[1680485691810,0.01359535,28016.0,28015.0,0.43961968]
[1680485692048,0.01359535,28016.0,28015.0,0.43979968]
[1680485692490,0.01359535,28016.0,28015.0,0.40635668]
[1680485692710,0.01359535,28016.0,28015.0,0.43998368]
[1680485693173,0.01359535,28016.0,28015.0,0.40635668]
[1680485693586,0.01359535,28016.0,28015.0,0.43873668]
[1680485693828,0.01359535,28016.0,28015.0,0.43973168]
[1680485694151,0.01359535,28016.0,28015.0,0.40635668]
[1680485694682,0.01359535,28016.0,28015.0,0.43972768]
[1680485694895,0.01359535,28016.0,28015.0,0.40635668]
[1680485695529,0.01359535,28016.0,28015.0,0.43799268]
[1680485695987,0.01359535,28016.0,28015.0,0.40635668]
[1680485696418,0.01359535,28016.0,28015.0,0.43901768]
[1680485696626,0.01359535,28016.0,28015.0,0.40635668]
[1680485696837,0.01359535,28016.0,28015.0,0.43837868]
[1680485698126,0.01349634,28016.0,28015.0,0.52299868]
[1680485698377,0.01349634,28016.0,28015.0,0.57299868]
[1680485699137,0.01218233,28016.0,28015.0,0.57299868]
[1680485699370,0.01218233,28016.0,28015.0,0.57305868]
[1680485699608,0.08422101,28020.0,28015.0,0.57305868]
[1680485699833,0.08422101,28020.0,28017.0,0.3752]
[1680485700048,0.08422101,28020.0,28018.0,0.053536]
[1680485700727,0.08622101,28020.0,28018.0,0.053536]
[1680485700982,0.08422101,28020.0,28019.0,0.031585]
[1680485701197,0.08622101,28020.0,28019.0,0.06250667]
[1680485701411,0.08422101,28020.0,28019.0,0.03092167]
[1680485701641,0.48201142,28020.0,28019.0,0.01307667]
[1680485701862,0.51597442,28020.0,28019.0,0.01307667]
[1680485702103,1.96974911,28020.0,28017.0,0.017845]
[1680485702343,0.11178848,28019.0,28017.0,0.017845]
[1680485702561,0.026533,28018.0,28017.0,0.017845]
[1680485703436,0.11168248,28018.0,28017.0,0.017845]
[1680485703680,0.027533,28018.0,28017.0,0.019845]
[1680485703897,0.001,28018.0,28017.0,0.019845]
[1680485706877,0.08514948,28018.0,28017.0,0.017845]
[1680485707097,0.08514948,28018.0,28017.0,0.018845]
[1680485707732,0.08514948,28018.0,28017.0,0.017845]
[1680485707950,0.09114948,28018.0,28017.0,0.017845]
[1680485711655,0.006,28018.0,28017.0,0.017845]
[1680485712677,0.09114948,28018.0,28017.0,0.017845]
[1680485713717,0.11888848,28018.0,28017.0,0.017845]
[1680485713905,0.032333,28018.0,28017.0,0.017845]
[1680485714149,0.006,28018.0,28017.0,0.017845]
[1680485714849,0.031851,28018.0,28017.0,0.017845]
[1680485715065,0.006,28018.0,28017.0,0.017845]
[1680485715276,0.033308,28018.0,28017.0,0.017845]
[1680485715916,0.03251,28018.0,28017.0,0.017845]
[1680485716145,0.08514948,28019.0,28017.0,0.017845]
[1680485716417,0.006,28018.0,28017.0,0.017845]
[1680485716641,0.006,28018.0,28017.0,0.393045]
[1680485716864,0.21218593,28020.0,28017.0,0.426137]
[1680485717090,0.08544948,28020.0,28018.0,0.033978]
[1680485717318,0.08514948,28020.0,28019.0,0.053535]
[1680485717991,0.08514948,28020.0,28019.0,0.088466]
[1680485718208,0.08514948,28020.0,28019.0,0.053535]
[1680485718680,0.08514948,28020.0,28019.0,0.086609]
[1680485718898,0.08514948,28020.0,28019.0,0.053535]
[1680485719357,0.12733645,28021.0,28019.0,0.086904]
[1680485719358,0.0003,28021.0,28019.0,0.086904]
[1680485719592,0.08544948,28022.0,28020.0,0.033936]
[1680485719821,0.0003,28022.0,28021.0,0.05353]
[1680485720058,0.0833425,28023.0,28021.0,0.085746]
[1680485720306,0.0833425,28023.0,28021.0,0.05353]
[1680485720528,0.21037895,28023.0,28021.0,0.05353]
[1680485720754,0.21037895,28023.0,28021.0,0.05371]
[1680485721458,0.12703645,28023.0,28021.0,0.05371]
[1680485721694,0.13616505,28024.0,28021.0,0.05371]
[1680485721912,0.001,28022.0,28021.0,0.05371]
[1680485722363,0.13616505,28024.0,28021.0,0.08683]
[1680485722584,0.001,28023.0,28021.0,0.05671]
[1680485722822,0.13616505,28024.0,28021.0,0.05371]
[1680485723043,0.13616505,28024.0,28021.0,0.05471]
[1680485723260,0.0091286,28024.0,28021.0,0.05371]
[1680485723487,0.0101286,28024.0,28021.0,0.05671]
[1680485724155,0.13716505,28024.0,28021.0,0.05671]
[1680485724599,0.0101286,28024.0,28021.0,0.05671]
[1680485725040,0.0091286,28024.0,28021.0,0.05371]
[1680485725275,0.13737505,28024.0,28020.0,0.30764143]
[1680485725498,0.0103386,28024.0,28021.0,0.05353]
[1680485725718,0.0101886,28024.0,28021.0,0.05353]
[1680485725934,0.0093386,28024.0,28021.0,0.05353]
[1680485726145,0.0103386,28024.0,28021.0,0.05353]
[1680485726818,0.50728844,28024.0,28019.0,0.00012]
[1680485727039,0.0842,28022.0,28017.0,0.01360466]
[1680485727258,0.52392584,28021.0,28017.0,0.03145066]
[1680485727476,0.49694984,28021.0,28017.0,0.03145066]
[1680485727718,0.0085,28020.0,28017.0,0.03145066]
[1680485727967,0.36347497,28020.0,28017.0,0.03145066]
[1680485729334,0.36347497,28020.0,28017.0,0.01360466]
[1680485729563,0.17846,28018.0,28017.0,0.01360466]
[1680485729788,0.53343497,28018.0,28017.0,0.01360466]
[1680485730083,0.86880297,28018.0,28014.0,0.017848]
[1680485730347,0.38161697,28017.0,28014.0,0.017847]
[1680485730573,0.35497497,28017.0,28014.0,0.017847]
[1680485731019,0.35497497,28017.0,28015.0,0.01337897]
[1680485731245,0.026355,28016.0,28015.0,0.03122597]
[1680485733080,0.07483428,28016.0,28015.0,0.017847]
[1680485733328,0.04847928,28016.0,28015.0,0.017847]
[1680485733769,0.06147928,28016.0,28015.0,0.017847]
[1680485733986,0.04847928,28016.0,28015.0,0.017847]
[1680485734224,0.05547928,28016.0,28015.0,0.017847]
[1680485734889,0.04847928,28016.0,28015.0,0.017847]
[1680485735337,0.06147928,28016.0,28015.0,0.017847]
[1680485736279,0.04847928,28016.0,28015.0,0.017847]
[1680485736497,0.05547928,28016.0,28015.0,0.393047]
[1680485736717,0.04847928,28016.0,28015.0,0.393047]
[1680485736932,0.06147928,28016.0,28015.0,0.393047]
[1680485737193,0.04847928,28016.0,28015.0,0.393047]
[1680485737406,0.05547928,28016.0,28015.0,0.393047]
[1680485737619,0.04847928,28016.0,28015.0,0.393047]
[1680485738051,0.00021,28018.0,28015.0,0.393047]
[1680485738268,0.38506613,28019.0,28015.0,0.393167]
[1680485738269,0.001,28016.0,28015.0,0.393167]
[1680485738484,0.001,28016.0,28015.0,0.393047]
[1680485739580,0.38527613,28019.0,28015.0,0.393047]
[1680485739815,0.007,28016.0,28015.0,0.393047]
[1680485740035,0.00021,28018.0,28015.0,0.393047]
[1680485740248,0.001,28016.0,28015.0,0.393047]
[1680485740465,0.38527613,28019.0,28015.0,0.393047]
[1680485740686,0.007,28016.0,28015.0,0.393047]
[1680485741157,0.00021,28018.0,28015.0,0.393047]
[1680485741372,0.001,28016.0,28015.0,0.393047]
[1680485741575,0.38527613,28019.0,28015.0,0.393047]
[1680485742491,0.007,28016.0,28015.0,0.393047]
[1680485742707,0.00021,28018.0,28015.0,0.393047]
[1680485742923,0.38627613,28019.0,28015.0,0.393047]
[1680485743133,0.38527613,28019.0,28015.0,0.393047]
[1680485743362,0.007,28016.0,28015.0,0.393047]
[1680485743781,0.00021,28018.0,28015.0,0.393047]
[1680485743996,0.38627613,28019.0,28015.0,0.393047]
[1680485744213,0.38527613,28019.0,28015.0,0.393047]
[1680485744426,0.007,28016.0,28015.0,0.393047]
[1680485745319,0.00021,28018.0,28015.0,0.393047]
[1680485745536,0.38527613,28019.0,28015.0,0.393047]
[1680485745770,0.35497497,28018.0,28015.0,0.017967]
[1680485745999,0.007,28016.0,28015.0,0.017847]
[1680485746227,0.35518497,28018.0,28015.0,0.017847]
[1680485746812,0.007,28016.0,28015.0,0.017847]
[1680485747249,0.0478876,28017.0,28015.0,0.017847]
[1680485748893,0.0548876,28017.0,28015.0,0.017847]
[1680485749108,0.0478876,28017.0,28015.0,0.017847]
[1680485749319,0.0488876,28017.0,28015.0,0.393047]
[1680485749528,0.0478876,28017.0,28015.0,0.393047]
[1680485749739,0.0548876,28017.0,28015.0,0.393047]
[1680485749936,0.0548876,28017.0,28015.0,0.017847]
[1680485750078,0.0478876,28017.0,28015.0,0.017847]
[1680485750718,0.2263476,28017.0,28015.0,0.017847]
[1680485750888,0.17846,28017.0,28015.0,0.017847]
[1680485751098,0.17946,28017.0,28015.0,0.017847]
[1680485751323,0.53343497,28017.0,28015.0,0.017847]
[1680485751541,0.026188,28016.0,28015.0,0.017847]
[1680485752389,0.033188,28016.0,28015.0,0.017847]